bitfinex-derivatives/quotes_SOLF0:USTF0_20220108
["timestamp","ask_amount","ask_price","bid_price","bid_amount"]
[1641613797706,27.66479,139.0,138.95,4.0]
[1641613797908,27.66479,139.0,138.97,4.0]
[1641613798308,27.66479,139.0,138.93,39.7004]
[1641613798509,32.85879,139.0,138.93,4.0]
[1641613798810,32.85879,139.0,138.94,0.81710051]
[1641613800309,27.66479,138.96,138.94,0.81710051]
[1641613800512,32.35479,138.96,138.94,0.81710051]
[1641613801812,32.35479,138.96,138.91,0.81710051]
[1641613802013,32.35479,138.96,138.92,4.0]
[1641613802915,32.35479,138.96,138.93,0.81710051]
[1641613803113,4.69,138.96,138.93,0.81710051]
[1641613804215,27.66479,138.94,138.93,0.81710051]
[1641613805420,27.66479,138.94,138.9,0.81710051]
[1641613805620,27.66479,138.94,138.9,4.81710051]
[1641613805921,27.66479,138.94,138.9,0.81710051]
[1641613806321,27.66479,138.94,138.91,0.81710051]
[1641613806921,27.66479,138.94,138.9,4.81710051]
[1641613807320,27.66479,138.94,138.91,0.81710051]
[1641613809825,27.66479,138.94,138.91,15.9582778]
[1641613810527,27.66479,138.94,138.92,0.81710051]
[1641613811626,27.66479,138.94,138.93,15.14117729]
[1641613812027,27.66479,138.94,138.93,15.9582778]
[1641613812228,4.69,138.96,138.93,15.9582778]
[1641613812427,40.6839,138.98,138.93,15.9582778]
[1641613812626,40.6839,138.98,138.93,2.50703333]
[1641613812926,40.6839,138.98,138.94,0.81710051]
[1641613813126,27.66479,138.95,138.94,0.81710051]
[1641613813327,34.80779,138.95,138.94,2.50703333]
[1641613815129,62.47258,138.95,138.94,2.50703333]
[1641613815629,7.143,138.95,138.94,2.50703333]
[1641613816731,40.6839,138.98,138.94,2.50703333]
[1641613816931,7.19346833,138.99,138.94,2.50703333]
[1641613817130,7.19346833,138.99,138.95,0.81710051]
[1641613817332,27.66479,138.96,138.95,0.81710051]
[1641613817531,27.66479,138.96,138.95,2.50703333]
[1641613819538,27.66479,138.96,138.93,15.14117729]
[1641613820638,27.66479,138.96,138.9,15.14117729]
[1641613821039,27.66479,138.96,138.91,0.81731667]
[1641613821441,27.66479,138.93,138.91,0.81731667]
[1641613823044,27.66479,138.93,138.9,0.81731667]
[1641613823944,27.66479,138.93,138.9,15.95849396]
[1641613824549,27.66479,138.93,138.91,0.81731667]
[1641613824947,27.66479,138.93,138.91,15.95849396]
[1641613825546,27.66479,138.93,138.92,0.81731667]
[1641613828050,27.66479,138.93,138.92,15.14117729]
[1641613828250,27.66479,138.93,138.89,48.10714448]
[1641613828450,34.86136443,138.93,138.89,48.10714448]
[1641613829152,34.86136443,138.93,138.87,12.70752783]
[1641613829351,34.86136443,138.93,138.84,40.7784716]
[1641613829753,55.32958,138.85,138.84,40.7784716]
[1641613829951,62.21958,138.85,138.84,40.7784716]
[1641613830352,62.21958,138.85,138.82,4.0]
[1641613830952,62.21958,138.85,138.83,0.81773348]
[1641613831652,34.55479,138.85,138.83,4.81773348]
[1641613831852,27.66479,138.89,138.83,0.81773348]
[1641613832255,27.66479,138.89,138.84,0.81773348]
[1641613832455,27.66479,138.89,138.87,5.08383938]
[1641613833056,27.66479,138.89,138.88,0.81773348]
[1641613833254,27.66479,138.89,138.87,5.08383938]
[1641613833454,27.66479,138.89,138.86,5.08383938]
[1641613833455,34.72079,138.89,138.86,5.08383938]
[1641613833856,27.66479,138.88,138.86,5.08383938]
[1641613834258,27.66479,138.88,138.85,5.08383938]
[1641613834455,70.23169,138.88,138.87,0.81767917]
[1641613834958,70.23169,138.88,138.86,0.81767917]
[1641613835158,34.77279,138.88,138.85,5.08383938]
[1641613836458,34.77279,138.88,138.86,0.8177126]
[1641613836757,34.77279,138.88,138.85,0.8177126]
[1641613838058,34.77279,138.88,138.84,0.8177126]
[1641613838261,27.66479,138.88,138.84,0.8177126]
[1641613839060,27.66479,138.88,138.82,5.08383938]
[1641613839262,7.20046083,138.85,138.77,4.0]
[1641613839460,7.20046083,138.85,138.75,39.9783]
[1641613839461,7.20201656,138.83,138.75,39.9783]
[1641613839861,27.66479,138.77,138.75,39.9783]
[1641613840062,33.53679,138.77,138.72,60.78647041]
[1641613840261,33.53679,138.77,138.7,67.30689]
[1641613840461,33.53679,138.77,138.72,4.0]
[1641613840662,33.53679,138.77,138.71,4.0]
[1641613841063,33.53679,138.77,138.72,4.0]
[1641613841662,33.53679,138.77,138.7,67.30689]
[1641613841865,33.53679,138.77,138.71,4.0]
[1641613843168,33.53679,138.77,138.7,43.6421]
[1641613843370,33.53679,138.77,138.7,39.6421]
[1641613843969,33.53679,138.77,138.67,27.66479]
[1641613843970,27.66479,138.73,138.68,4.0]
[1641613844172,34.93579,138.73,138.68,4.0]
[1641613844671,34.93579,138.73,138.67,27.66479]
[1641613844873,34.93579,138.73,138.68,4.0]
[1641613845372,34.93579,138.73,138.67,27.66479]
[1641613845773,34.93579,138.73,138.67,31.66479]
[1641613846077,34.93579,138.73,138.67,27.66479]
[1641613846879,34.93579,138.73,138.66,39.8234]
[1641613847979,62.60058,138.73,138.66,39.8234]
[1641613849277,62.60058,138.73,138.64,4.0]
[1641613849478,62.60058,138.73,138.63,27.66479]
[1641613849680,69.80726781,138.73,138.63,27.66479]
[1641613850280,27.66479,138.7,138.63,27.66479]
[1641613850479,27.66479,138.7,138.65,4.0]
[1641613850680,27.66479,138.7,138.66,4.0]
[1641613851081,27.66479,138.7,138.69,4.0]
[1641613851382,27.66479,138.7,138.63,27.66479]
[1641613851780,27.66479,138.7,138.67,4.0]
[1641613851982,27.66479,138.7,138.63,27.66479]
[1641613852383,27.66479,138.7,138.67,4.0]
[1641613852584,27.66479,138.7,138.63,27.66479]
[1641613854496,27.66479,138.7,138.64,0.8186063]
[1641613854689,27.66479,138.7,138.66,4.0]
[1641613854887,27.66479,138.7,138.69,4.0]
[1641613855287,27.66479,138.7,138.64,0.8186063]
[1641613855488,27.66479,138.7,138.69,0.8186063]
[1641613855890,27.66479,138.73,138.69,4.0]
[1641613856088,39.7526,138.76,138.72,4.0]
[1641613856288,27.66479,138.76,138.72,4.0]
[1641613856990,27.66479,138.76,138.73,0.8186063]
[1641613857391,7.20590885,138.75,138.73,6.3e-06]
[1641613857591,56.13540885,138.75,138.73,6.3e-06]
[1641613857791,56.13540885,138.75,138.67,4.0]
[1641613858393,27.66479,138.72,138.67,4.0]
[1641613858693,27.66479,138.72,138.68,0.81858208]
[1641613858892,34.27179,138.72,138.68,0.81858208]
[1641613859593,34.27179,138.72,138.67,4.0]
[1641613859992,49.01440885,138.75,138.68,0.81858208]
[1641613860192,27.66479,138.76,138.73,4.0]
[1641613860393,27.66479,138.76,138.73,11.065]
[1641613860594,27.66479,138.79,138.74,4.0]
[1641613860993,27.66479,138.79,138.75,0.81858208]
[1641613861398,27.66479,138.79,138.73,0.81858208]
[1641613861598,27.66479,138.79,138.73,4.81858208]
[1641613861797,27.66479,138.79,138.73,0.81858208]
[1641613862398,61.39058,138.79,138.71,4.0]
[1641613862697,61.39058,138.79,138.72,0.81858208]
[1641613863297,61.39058,138.79,138.72,4.81858208]
[1641613863497,61.39058,138.79,138.72,0.81858208]
[1641613863698,7.20409192,138.78,138.72,0.81858208]
[1641613863897,7.20409192,138.78,138.73,0.81858208]
[1641613864499,27.66479,138.75,138.71,0.81858208]
[1641613864900,27.66479,138.75,138.7,0.81858208]
[1641613865303,27.66479,138.75,138.72,4.0]
[1641613865702,7.20409192,138.78,138.72,4.0]
[1641613865903,7.20409192,138.78,138.73,0.81858208]
[1641613866402,27.66479,138.77,138.73,4.81858208]
[1641613866705,27.66479,138.77,138.73,4.0]
[1641613866904,27.66479,138.77,138.7,0.81858208]
[1641613867105,27.66479,138.77,138.74,0.81858208]
[1641613867604,27.66479,138.77,138.73,0.81858208]
[1641613868005,27.66479,138.77,138.75,0.81858208]
[1641613868304,27.66479,138.77,138.7,0.81858208]
[1641613868504,27.66479,138.74,138.7,0.81858208]
[1641613868707,27.66479,138.74,138.72,4.0]
[1641613869006,27.66479,138.74,138.7,0.81858208]
[1641613869207,34.73879,138.74,138.73,0.81858208]
[1641613869605,34.73879,138.74,138.72,0.81858208]
[1641613870010,34.73879,138.74,138.72,4.81858208]
[1641613870210,27.66479,138.74,138.72,0.81858208]
[1641613870407,27.66479,138.74,138.67,15.14980282]
[1641613870908,3.41713229,138.73,138.65,42.81459282]
[1641613872007,3.41713229,138.73,138.66,1.68459949]
[1641613873710,10.62407979,138.73,138.66,1.68459949]
[1641613874511,27.66479,138.69,138.64,1.68459949]
[1641613876217,27.66479,138.69,138.63,1.68459949]
[1641613876418,55.32958,138.69,138.63,1.68459949]
[1641613878619,55.32958,138.69,138.65,4.0]
[1641613878919,62.53834586,138.69,138.65,4.0]
[1641613880322,55.32958,138.69,138.65,4.0]
[1641613881421,55.32958,138.69,138.62,27.66479]
[1641613881422,55.32958,138.69,138.62,31.66479]
[1641613881721,63.01658,138.69,138.62,46.81459282]
[1641613882423,63.01658,138.69,138.63,1.67985003]
[1641613882823,63.01658,138.69,138.64,4.0]
[1641613883121,63.01658,138.69,138.63,1.67985003]
[1641613883323,7.687,138.69,138.63,1.67985003]
[1641613883522,7.687,138.69,138.63,5.67985003]
[1641613883924,7.687,138.69,138.63,1.67985003]
[1641613884327,7.687,138.69,138.61,47.2214]
[1641613884529,7.687,138.69,138.61,43.2214]
[1641613884728,27.66479,138.63,138.61,47.2214]
[1641613884930,34.67779,138.63,138.61,43.2214]
[1641613886429,34.67779,138.63,138.6,4.0]
[1641613888631,34.67779,138.63,138.57,62.13650282]
[1641613888831,34.67779,138.63,138.59,4.0]
[1641613889833,34.67779,138.63,138.57,62.13650282]
[1641613890033,34.67779,138.63,138.59,4.0]
[1641613890233,27.66479,138.63,138.57,46.9867]
[1641613890533,27.66479,138.63,138.58,4.0]
[1641613890933,27.66479,138.63,138.58,1.67702913]
[1641613891635,27.66479,138.63,138.58,5.67702913]
[1641613891935,27.66479,138.63,138.58,1.67702913]
[1641613892135,27.66479,138.63,138.58,5.67702913]
[1641613892337,27.66479,138.63,138.58,1.67702913]
[1641613892638,27.66479,138.63,138.58,5.67702913]
[1641613893036,27.66479,138.63,138.58,1.67702913]
[1641613894137,43.7454,138.65,138.58,1.67702913]
[1641613894636,43.7454,138.65,138.59,4.0]
[1641613894837,27.66479,138.63,138.58,1.67702913]
[1641613895037,27.66479,138.63,138.6,4.0]
[1641613895740,54.7054,138.65,138.6,4.0]
[1641613896640,46.51481618,138.65,138.6,4.0]
[1641613896844,27.66479,138.63,138.6,4.0]
[1641613897347,27.66479,138.63,138.57,46.9867]
[1641613897745,27.66479,138.63,138.6,4.0]
[1641613898146,27.66479,138.63,138.57,46.9867]
[1641613898646,27.66479,138.63,138.61,4.0]
[1641613899547,38.62479,138.65,138.62,4.0]
[1641613899746,10.96,138.65,138.62,4.0]
[1641613899948,10.72,138.69,138.64,8.0]
[1641613900150,10.72,138.69,138.68,4.0]
[1641613900351,10.72,138.69,138.68,9.716]
[1641613900550,15.14980282,138.7,138.68,9.716]
[1641613901052,15.14980282,138.7,138.69,4.0]
[1641613901650,31.07933353,138.72,138.69,4.0]
[1641613902753,3.41454353,138.71,138.69,4.0]
[1641613903052,3.41454353,138.71,138.66,5.09184165]
[1641613903453,3.41454353,138.71,138.69,4.0]
[1641613903653,27.66479,138.72,138.66,5.09184165]
[1641613903852,27.66479,138.72,138.69,4.0]
[1641613904254,27.66479,138.72,138.7,4.0]
[1641613904453,27.66479,138.74,138.68,5.909]
[1641613904653,27.66479,138.74,138.71,4.0]
[1641613904854,27.66479,138.74,138.71,5.858]
[1641613905955,27.66479,138.74,138.72,4.0]
[1641613906157,27.66479,138.74,138.69,5.09184165]
[1641613906355,27.66479,138.74,138.72,4.0]
[1641613906558,7.20564923,138.75,138.72,4.0]
[1641613907258,7.20564923,138.75,138.71,7.144]
[1641613907457,10.7,138.76,138.73,4.0]
[1641613907957,42.81459282,138.77,138.7,4.0]
[1641613908158,15.14980282,138.77,138.68,38.66563165]
[1641613908358,15.14980282,138.77,138.76,4.0]
[1641613908558,40.28337142,138.81,138.76,4.0]
[1641613908559,40.28337142,138.81,138.76,14.714]
[1641613908760,15.27043413,138.8,138.76,10.714]
[1641613908960,15.27043413,138.8,138.79,4.0]
[1641613909159,40.28337142,138.83,138.79,11.515]
[1641613910062,40.28337142,138.83,138.81,4.0]
[1641613910259,40.28337142,138.83,138.74,27.66479]
[1641613910461,46.21237142,138.83,138.74,27.66479]
[1641613910862,27.66479,138.81,138.75,9.09184165]
[1641613911268,27.66479,138.81,138.75,5.09184165]
[1641613911465,27.66479,138.81,138.75,9.09184165]
[1641613911664,27.66479,138.81,138.76,4.0]
[1641613912463,27.66479,138.81,138.8,4.0]
[1641613912665,27.66479,138.81,138.78,4.0]
[1641613912867,27.66479,138.81,138.72,48.3715]
[1641613913065,27.66479,138.81,138.76,4.0]
[1641613914765,27.66479,138.81,138.72,4.0]
[1641613917171,27.66479,138.81,138.76,4.0]
[1641613917472,27.66479,138.81,138.73,4.0]
[1641613918372,27.66479,138.81,138.71,27.66479]
[1641613918373,5.06180572,138.8,138.71,27.66479]
[1641613918574,11.34080572,138.8,138.74,4.0]
[1641613918977,27.66479,138.77,138.74,4.0]
[1641613919176,35.38479,138.77,138.74,4.0]
[1641613920278,35.38479,138.77,138.71,27.66479]
[1641613920878,35.38479,138.77,138.74,4.0]
[1641613921079,35.38479,138.77,138.71,27.66479]
[1641613921280,7.72,138.77,138.73,4.0]
[1641613921480,5.06180572,138.8,138.73,4.0]
[1641613921880,32.72659572,138.81,138.71,27.66479]
[1641613922281,32.72659572,138.81,138.74,4.0]
[1641613922480,32.72659572,138.81,138.71,27.66479]
[1641613922680,39.63059572,138.81,138.71,27.66479]
[1641613922881,39.63059572,138.81,138.68,9.09184165]
[1641613922882,11.96580572,138.81,138.68,9.09184165]
[1641613923081,11.96580572,138.81,138.72,4.0]
[1641613923283,27.66479,138.79,138.72,31.66479]
[1641613924182,27.66479,138.79,138.72,27.66479]
[1641613924581,27.66479,138.79,138.76,4.0]
[1641613924781,5.06180572,138.81,138.74,6.069]
[1641613924981,5.06180572,138.81,138.77,4.0]
[1641613925381,27.66479,138.82,138.77,4.0]
[1641613925582,27.66479,138.82,138.73,4.0]
[1641613925782,27.66479,138.82,138.78,4.0]
[1641613925984,27.66479,138.82,138.73,46.6415]
[1641613926685,27.66479,138.82,138.73,50.6415]
[1641613926888,27.66479,138.82,138.77,4.0]
[1641613927186,27.66479,138.82,138.78,4.0]
[1641613927585,27.66479,138.82,138.79,4.0]
[1641613927784,27.66479,138.82,138.73,46.6415]
[1641613927985,5.06180572,138.83,138.81,4.0]
[1641613928185,5.06180572,138.83,138.79,7.293]
[1641613928186,5.06180572,138.83,138.82,4.0]
[1641613928385,5.06180572,138.83,138.82,10.373]
[1641613929585,5.72e-06,138.83,138.82,10.373]
[1641613929787,5.72e-06,138.87,138.82,10.373]
[1641613929986,5.72e-06,138.87,138.82,6.373]
[1641613930186,5.72e-06,138.87,138.81,31.66479]
[1641613930388,5.72e-06,138.87,138.86,4.0]
[1641613930887,5.72e-06,138.87,138.84,4.0]
[1641613931088,27.66479,138.89,138.84,4.0]
[1641613931288,3.39972378,138.88,138.84,4.0]
[1641613932391,3.39972378,138.88,138.86,4.0]
[1641613934193,3.39972378,138.88,138.82,4.0]
[1641613934392,3.39972378,138.88,138.85,7.673]
[1641613935895,3.39972378,138.88,138.85,11.673]
[1641613936896,3.39972378,138.88,138.85,7.673]
[1641613938197,3.39972378,138.88,138.85,11.673]
[1641613938597,3.39972378,138.88,138.85,7.673]
[1641613939097,3.39972378,138.88,138.81,27.66479]
[1641613939597,3.39972378,138.88,138.85,4.0]
[1641613940800,3.39972378,138.88,138.81,31.66479]
[1641613941699,3.39972378,138.88,138.85,4.0]
[1641613942903,3.39972378,138.88,138.81,31.66479]
[1641613943103,3.39972378,138.88,138.81,27.66479]
[1641613943302,3.39972378,138.88,138.85,4.0]
[1641613943502,27.66479,138.89,138.85,4.0]
[1641613944403,3.39386428,138.88,138.85,4.0]
[1641613945102,3.39386428,138.88,138.81,27.66479]
[1641613945304,3.39386428,138.88,138.83,4.0]
[1641613945605,4.09042081,138.87,138.78,95.5783]
[1641613945807,27.66479,138.85,138.8,4.0]
[1641613946005,34.62779,138.85,138.8,4.0]
[1641613946205,34.62779,138.85,138.78,48.5611]
[1641613946405,34.62779,138.85,138.82,4.0]
[1641613946805,34.62779,138.85,138.75,75.03149]
[1641613947005,34.62779,138.85,138.81,4.0]
[1641613947409,3.39484998,138.84,138.81,4.0]
[1641613947706,3.39484998,138.84,138.75,31.66479]
[1641613947907,3.39484998,138.84,138.78,4.0]
[1641613948109,3.39484998,138.84,138.76,4.0]
[1641613948708,4.09178875,138.83,138.75,4.0]
[1641613949108,4.09178875,138.83,138.76,4.0]
[1641613949309,19.31988957,138.83,138.76,4.0]
[1641613949509,19.31988957,138.83,138.7,11.20046083]
[1641613949710,19.31988957,138.83,138.75,4.0]
[1641613949909,27.66479,138.8,138.75,4.0]
[1641613950410,27.66479,138.8,138.76,4.0]
[1641613952113,27.66479,138.8,138.72,27.66479]
[1641613953312,34.03479,138.8,138.75,4.0]
[1641613954711,34.03479,138.8,138.72,27.66479]
[1641613955814,3.40262637,138.79,138.72,27.66479]
[1641613956412,3.40262637,138.79,138.72,31.66479]
[1641613956813,3.40262637,138.79,138.72,23.4803491]
[1641613957113,27.66479,138.8,138.72,23.4803491]
[1641613957414,27.66479,138.8,138.75,4.0]
[1641613958217,27.66479,138.8,138.72,19.4803491]
[1641613958416,27.66479,138.8,138.75,4.0]
[1641613961118,27.66479,138.8,138.72,4.0]
[1641613961519,27.66479,138.8,138.77,4.0]
[1641613961718,27.66479,138.81,138.78,4.0]
[1641613962716,27.66479,138.81,138.76,4.703]
[1641613962917,27.66479,138.83,138.76,4.703]
[1641613963119,27.66479,138.83,138.78,4.0]
[1641613963718,27.66479,138.83,138.77,4.0]
[1641613964618,55.32958,138.83,138.77,4.0]
[1641613964919,3.39843672,138.82,138.77,4.0]
[1641613969726,18.62653754,138.82,138.77,4.0]
[1641613971131,27.66479,138.79,138.77,4.0]
[1641613971832,7.20253529,138.81,138.77,4.0]
[1641613972131,22.43063611,138.81,138.72,45.1662]
[1641613972331,22.43063611,138.81,138.74,4.0]
[1641613972832,18.63311848,138.8,138.74,4.0]
[1641613973135,27.66479,138.79,138.74,4.0]
[1641613973638,42.89289082,138.79,138.74,4.0]
[1641613974437,3.40501766,138.78,138.74,4.0]
[1641613976239,3.40501766,138.78,138.72,72.83099]
[1641613976438,18.63311848,138.78,138.73,4.0]
[1641613979239,18.63311848,138.78,138.75,4.0]
[1641613979439,18.63311848,138.78,138.77,4.0]
[1641613980342,3.40501766,138.78,138.77,4.0]
[1641613981839,3.40501766,138.78,138.76,4.0]
[1641613982044,3.40501766,138.78,138.74,4.0]
[1641613982240,3.40501766,138.78,138.72,27.66479]
[1641613982641,3.40501766,138.78,138.74,4.0]
[1641613982843,3.40501766,138.78,138.73,1.68844838]
[1641613983042,3.40501766,138.78,138.76,4.0]
[1641613984344,15.22810082,138.8,138.77,4.0]
[1641613984544,10.07960082,138.8,138.79,4.0]
[1641613984745,40.28337142,138.83,138.79,9.687]
[1641613984945,40.28337142,138.83,138.79,5.687]
[1641613985244,40.28337142,138.83,138.81,4.0]
[1641613985445,40.28337142,138.83,138.79,5.687]
[1641613985846,10.76,138.87,138.79,5.687]
[1641613986046,27.66479,138.84,138.79,5.687]
[1641613986444,27.66479,138.84,138.8,4.0]
[1641613986644,27.66479,138.84,138.75,27.66479]
[1641613986846,35.17679,138.84,138.8,4.0]
[1641613987144,35.17679,138.84,138.75,27.66479]
[1641613987345,35.17679,138.84,138.77,4.0]
[1641613988144,62.84158,138.84,138.77,4.0]
[1641613988845,62.84158,138.84,138.75,27.66479]
[1641613989549,62.84158,138.84,138.77,4.0]
[1641613989745,5.09582267,138.81,138.77,4.0]
[1641613990646,5.09582267,138.8,138.77,4.0]
[1641613992948,5.09582267,138.8,138.76,5.09582267]
[1641613992949,5.09582267,138.8,138.76,9.09582267]
[1641613993148,5.09582267,138.8,138.79,4.0]
[1641613993347,46.7779,138.86,138.79,10.498]
[1641613993549,40.28337142,138.87,138.85,4.0]
[1641613993748,40.28337142,138.87,138.85,10.624]
[1641613993948,40.28337142,138.88,138.85,10.624]
[1641613994148,40.28337142,138.88,138.87,4.0]
[1641613995050,27.66479,138.88,138.87,4.0]
[1641613995248,146.55682106,138.92,138.87,4.0]
[1641613995249,40.28337142,138.92,138.87,4.0]
[1641613995449,40.28337142,138.92,138.85,10.624]
[1641613995649,40.28337142,138.92,138.9,4.0]
[1641613996049,40.28337142,138.92,138.86,4.0]
[1641613996653,47.7513,138.95,138.91,4.0]
[1641613996850,10.52,138.96,138.91,4.0]
[1641613997452,10.52,138.96,138.87,75.43149]
[1641613997652,10.52,138.96,138.9,4.0]
[1641613997853,10.52,138.96,138.89,4.714]
[1641613998052,27.66479,138.97,138.89,4.714]
[1641613998452,27.66479,138.97,138.9,4.0]
[1641613998653,38.64479,138.97,138.9,4.0]
[1641613999153,4.08815464,138.96,138.9,4.0]
[1641613999553,4.08815464,138.96,138.87,59.32958]
[1641613999756,4.08815464,138.96,138.87,4.0]
[1641614000155,4.08815464,138.96,138.85,48.5681]
[1641614000355,16.49246905,138.96,138.87,4.0]
[1641614001055,4.08815464,138.95,138.87,4.0]
[1641614001758,4.08815464,138.95,138.86,27.66479]
[1641614002057,4.08815464,138.95,138.91,4.0]
[1641614002260,4.08815464,138.95,138.91,6.647]
[1641614002458,4.08815464,138.95,138.92,4.0]
[1641614002658,4.08815464,138.95,138.91,6.647]
[1641614003260,4.08815464,138.96,138.91,6.647]
[1641614003962,4.08815464,138.96,138.88,4.0]
[1641614004864,4.08815464,138.96,138.86,27.66479]
[1641614005063,4.08815464,138.96,138.86,31.66479]
[1641614005267,4.08815464,138.96,138.89,27.66479]
[1641614005463,4.08815464,138.96,138.89,34.25579]
[1641614005962,4.08815464,138.96,138.9,4.0]
[1641614006363,38.64479,138.97,138.9,4.0]
[1641614007361,4.08808094,138.96,138.9,4.0]
[1641614007564,4.08808094,138.96,138.89,27.66479]
[1641614007763,4.08808094,138.96,138.88,4.0]
[1641614008765,16.48919766,138.96,138.88,4.0]
[1641614009164,4.08808094,138.95,138.88,4.0]
[1641614009366,4.08808094,138.95,138.86,27.66479]
[1641614009964,4.08808094,138.95,138.88,4.0]
[1641614010564,4.08808094,138.95,138.86,31.66479]
[1641614010764,8.83508094,138.95,138.86,31.66479]
[1641614011164,4.08808094,138.94,138.86,31.66479]
[1641614011367,27.66479,138.93,138.86,31.66479]
[1641614011967,27.66479,138.93,138.86,27.66479]
[1641614012167,27.66479,138.93,138.83,4.0]
[1641614012366,49.4801,138.92,138.83,4.0]
[1641614012570,54.7031,138.92,138.83,4.0]
[1641614012769,58.79276016,138.92,138.83,4.0]
[1641614013166,4.08966016,138.91,138.83,4.0]
[1641614013367,4.08966016,138.91,138.82,48.5848]
[1641614013570,4.08966016,138.91,138.85,4.0]
[1641614013767,4.08966016,138.91,138.82,48.5848]
[1641614013768,4.08966016,138.91,138.83,4.0]
[1641614013968,4.08966016,138.91,138.85,4.0]
[1641614014369,4.08966016,138.91,138.83,4.0]
[1641614014570,49.4801,138.92,138.83,4.0]
[1641614014769,49.4801,138.92,138.81,27.66479]
[1641614014969,4.08966445,138.91,138.82,4.0]
[1641614015169,4.08966445,138.91,138.81,27.66479]
[1641614015673,15.22639305,138.9,138.81,27.66479]
[1641614015973,15.22639305,138.9,138.83,4.0]
[1641614016173,15.22639305,138.9,138.81,27.66479]
[1641614016372,15.22639305,138.9,138.87,4.0]
[1641614017272,64.70649305,138.92,138.82,7.22504426]
[1641614017571,2.69595574,138.88,138.85,27.66479]
[1641614019475,64.70649305,138.92,138.85,27.66479]
[1641614019673,2.69595574,138.91,138.85,27.66479]
[1641614020073,15.22639305,138.92,138.85,27.66479]
[1641614020273,15.22639305,138.92,138.85,33.07479]
[1641614020474,17.92234879,138.92,138.85,33.07479]
[1641614020675,17.92234879,138.92,138.85,34.37883426]
[1641614020875,2.69595574,138.92,138.85,34.37883426]
[1641614021475,15.22639305,138.94,138.85,34.37883426]
[1641614021476,15.22639305,138.94,138.89,27.66479]
[1641614021676,2.69595574,138.91,138.89,27.66479]
[1641614022779,15.22639305,138.93,138.89,27.66479]
[1641614023780,15.22639305,138.93,138.86,49.2007]
[1641614023981,15.22639305,138.93,138.83,1.30404426]
[1641614024482,15.22639305,138.92,138.89,27.66479]
[1641614025081,2.69595574,138.9,138.87,27.66479]
[1641614025381,4.0,138.91,138.82,61.91149305]
[1641614025580,51.1353,138.91,138.82,61.91149305]
[1641614025783,47.1353,138.91,138.82,61.91149305]
[1641614025981,2.69595574,138.89,138.82,61.91149305]
[1641614026181,2.69595574,138.89,138.83,1.68997806]
[1641614026381,2.69595574,138.89,138.84,27.66479]
[1641614027081,18.6325422,138.9,138.84,27.66479]
[1641614027281,3.40614915,138.88,138.84,27.66479]
[1641614027982,2.69595574,138.89,138.84,27.66479]
[1641614028383,2.69595574,138.89,138.87,27.66479]
[1641614029585,15.22639305,138.91,138.87,27.66479]
[1641614029786,39.57687142,138.94,138.9,1.30404426]
[1641614029985,39.57687142,138.94,138.91,1.30404426]
[1641614030386,39.57687142,138.94,138.93,55.32958]
[1641614030585,39.57687142,138.94,138.93,60.70458]
[1641614030786,3.34376817,138.94,138.93,60.70458]
[1641614030986,3.34376817,138.94,138.93,62.00862426]
[1641614031187,3.34376817,138.94,138.93,60.70458]
[1641614031986,60.73104964,138.98,138.93,60.70458]
[1641614032187,15.15321264,139.0,138.93,60.70458]
[1641614033286,15.15321264,139.0,138.93,62.00862426]
[1641614034295,12.4572569,139.0,138.96,1.30404426]
[1641614034491,12.4572569,139.0,138.99,55.32958]
[1641614034691,60.73104964,139.06,138.99,62.51758]
[1641614035092,60.73104964,139.06,138.99,63.82162426]
[1641614035292,50.6997,139.09,138.99,63.82162426]
[1641614035492,28.73904714,139.1,138.99,63.82162426]